fUST/lending_fUST_20250602
["ID","MTS","AMOUNT","RATE_DAILY","PERIOD"]
[363713736,1748839840782,-430.0,0.00019622,2]
[363713739,1748839840792,-430.0,0.00019622,2]
[363713742,1748839840801,-430.0,0.00019622,2]
[363713744,1748839840811,-430.0,0.00019622,2]
[363713747,1748839840821,-430.0,0.00019622,2]
[363713750,1748839840830,-264.14520718,0.00019622,2]
[363713753,1748839840840,-430.0,0.00019622,2]
[363713756,1748839840849,-430.0,0.00019622,2]
[363713759,1748839840859,-241.73533407,0.00019622,2]
[363713761,1748839840869,-430.0,0.00019622,2]
[363713763,1748839840878,-430.0,0.00019622,2]
[363713765,1748839840888,-245.6,0.00019622,2]
[363713767,1748839840898,-430.0,0.00019622,2]
[363713769,1748839840909,-430.0,0.00019622,2]
[363713771,1748839840918,-430.0,0.00019622,2]
[363713773,1748839840927,-208.57,0.00019622,2]
[363713775,1748839840937,-430.0,0.00019622,2]
[363713777,1748839840946,-500.0,0.00019622,2]
[363713779,1748839840957,-430.0,0.00019622,2]
[363713781,1748839840967,-488.95,0.00019622,2]
[363713783,1748839840976,-430.0,0.00019622,2]
[363713785,1748839840985,-430.0,0.00019622,2]
[363713787,1748839840995,-430.0,0.00019622,2]
[363713789,1748839841004,-430.0,0.00019622,2]
[363713791,1748839841013,-430.0,0.00019622,2]
[363713793,1748839841023,-430.0,0.00019622,2]
[363713795,1748839841033,-430.0,0.00019622,2]
[363713797,1748839841043,-430.0,0.00019622,2]
[363713799,1748839841052,-522.8634833,0.00019622,2]
[363713801,1748839841062,-439.52243637,0.00019622,2]
[363713803,1748839841078,-430.0,0.00019622,2]
[363713805,1748839841087,-430.0,0.00019622,2]
[363713807,1748839841099,-202.86,0.00019622,2]
[363713809,1748839841109,-430.0,0.00019622,2]
[363713812,1748839841120,-501.09436803,0.00019622,2]
[363713814,1748839841132,-430.0,0.00019622,2]
[363713816,1748839841142,-430.0,0.00019622,2]
[363713818,1748839841151,-430.0,0.00019622,2]
[363713820,1748839841161,-515.34765367,0.00019622,2]
[363713822,1748839841170,-336.17725696,0.00019625,2]
[363713824,1748839841179,-430.0,0.00019625,2]
[363713826,1748839841188,-463.63791189,0.00019625,2]
[363713827,1748839841197,-430.0,0.00019625,2]
[363713829,1748839841206,-466.72,0.00019625,2]
[363713831,1748839841216,-430.0,0.00019625,2]
[363713833,1748839841225,-409.41407832,0.00019625,2]
[363713835,1748839841235,-430.0,0.00019625,2]
[363713837,1748839841244,-175.15902726,0.00019625,2]
[363713839,1748839841252,-430.0,0.00019625,2]
[363713841,1748839841262,-430.0,0.00019625,2]
[363713844,1748839841272,-430.0,0.00019625,2]
[363713846,1748839841283,-445.14670364,0.00019625,2]
[363713848,1748839841295,-430.0,0.00019625,2]
[363713850,1748839841307,-435.30695927,0.00019625,2]
[363713852,1748839841317,-430.0,0.00019625,2]
[363713854,1748839841331,-500.0,0.00019625,2]
[363713856,1748839841341,-451.50363553,0.00019625,2]
[363713858,1748839841353,-458.29222238,0.00019625,2]
[363713860,1748839841363,-430.0,0.00019625,2]
[363713862,1748839841373,-501.22688919,0.00019625,2]
[363713864,1748839841383,-430.0,0.00019625,2]
[363713866,1748839841393,-430.0,0.00019625,2]
[363713867,1748839841403,-430.0,0.00019625,2]
[363713868,1748839841413,-192.66,0.00019647,2]
[363713869,1748839841423,-1404.51117675,0.0001973,2]
[363713870,1748839841433,-671.63229406,0.00019762,2]
[363713872,1748839841445,-420.0,0.00019767,2]
[363713874,1748839841456,-1798.08476099,0.00019818,2]
[363713876,1748839841466,-449.37128976,0.00019854,2]
[363713878,1748839841476,-430.0,0.00019854,2]
[363713880,1748839841485,-430.0,0.00019893,2]
[363713882,1748839841495,-430.0,0.00019893,2]
[363713884,1748839841504,-889.95,0.00019893,2]
[363713886,1748839841514,-430.0,0.00019893,2]
[363713888,1748839841524,-430.0,0.00019893,2]
[363713890,1748839841533,-900.56,0.00019893,2]
[363713892,1748839841543,-1132.34,0.00019893,2]
[363713894,1748839841553,-430.0,0.00019893,2]
[363713897,1748839841564,-430.0,0.00019893,2]
[363713899,1748839841574,-430.0,0.00019893,2]
[363713901,1748839841585,-521.07,0.00019893,2]
[363713903,1748839841594,-430.0,0.00019893,2]
[363713905,1748839841603,-430.0,0.00019893,2]
[363713907,1748839841612,-430.0,0.00019893,2]
[363713909,1748839841621,-430.0,0.00019895,2]
[363713911,1748839841631,-430.0,0.00019895,2]
[363713913,1748839841641,-430.0,0.00019895,2]
[363713915,1748839841651,-430.0,0.00019895,2]
[363713926,1748839841745,-430.0,0.00019895,2]
[363713928,1748839841755,-430.0,0.00019895,2]
[363713930,1748839841765,-430.0,0.00019895,2]
[363713932,1748839841776,-496.8,0.00019895,2]
[363713934,1748839841788,-430.0,0.00019895,2]
[363713936,1748839841797,-430.0,0.00019895,2]
[363713938,1748839841807,-430.0,0.00019895,2]
[363713939,1748839841816,-430.0,0.00019895,2]
[363713940,1748839841827,-430.0,0.00019895,2]
[363713941,1748839841836,-430.0,0.00019895,2]
[363713942,1748839841846,-430.0,0.00019895,2]
[363713943,1748839841855,-430.0,0.00019895,2]
[363713944,1748839841865,-524.09,0.00019895,2]
[363713945,1748839841874,-430.0,0.00019895,2]
[363713946,1748839841884,-430.0,0.00019895,2]
[363713947,1748839841893,-430.0,0.00019895,2]
[363713948,1748839841902,-961.55,0.00019895,2]
[363713949,1748839841913,-457.2650657,0.00019896,2]
[363713950,1748839841922,-255.46,0.00019896,2]
[363713951,1748839841931,-430.0,0.00019896,2]
[363713952,1748839841940,-430.0,0.00019896,2]
[363713953,1748839841950,-430.0,0.00019896,2]
[363713954,1748839841959,-276.94,0.00019896,2]
[363713955,1748839841970,-430.0,0.00019896,2]
[363713956,1748839841979,-430.0,0.00019896,2]
[363713957,1748839841988,-440.99535333,0.00019896,2]
[363713958,1748839841998,-430.0,0.00019896,2]
[363713959,1748839842007,-167.39716575,0.00019896,2]
[363713960,1748839842016,-430.0,0.00019896,2]
[363713961,1748839842026,-430.0,0.00019896,2]
[363713962,1748839842035,-430.0,0.00019896,2]
[363713963,1748839842045,-430.0,0.00019896,2]
[363713964,1748839842054,-430.0,0.00019896,2]
[363713965,1748839842064,-500.0,0.00019896,2]
[363713966,1748839842074,-430.0,0.00019896,2]
[363713967,1748839842083,-430.0,0.00019896,2]
[363713968,1748839842092,-427.24,0.00019896,2]
[363713969,1748839842102,-451.37512525,0.00019896,2]
[363713970,1748839842111,-442.48814772,0.00019896,2]
[363713971,1748839842121,-430.0,0.00019896,2]
[363713972,1748839842131,-430.0,0.00019896,2]
[363713973,1748839842140,-219.78709743,0.00019896,2]
[363713974,1748839842149,-438.72586793,0.00019896,2]
[363713975,1748839842159,-430.0,0.00019896,2]
[363713976,1748839842168,-430.0,0.00019896,2]
[363713977,1748839842178,-430.0,0.00019896,2]
[363713978,1748839842188,-430.0,0.00019896,2]
[363713979,1748839842197,-430.0,0.00019896,2]
[363713980,1748839842207,-430.0,0.00019896,2]
[363713981,1748839842217,-430.0,0.00019899,2]
[363713982,1748839842227,-446.13870317,0.00019899,2]
[363713983,1748839842236,-532.54747921,0.00019899,2]
[363713984,1748839842246,-461.06129069,0.00019899,2]
[363713985,1748839842256,-430.0,0.00019899,2]
[363713986,1748839842265,-500.0,0.00019899,2]
[363713987,1748839842275,-430.0,0.00019899,2]
[363713988,1748839842283,-212.73141729,0.00019899,2]
[363713989,1748839842293,-430.0,0.00019899,2]
[363713990,1748839842302,-430.0,0.00019899,2]
[363713991,1748839842312,-1244.55,0.00019905,2]
[363713992,1748839842323,-671.63229406,0.00019934,2]
[363713993,1748839842333,-1000.0,0.0002,2]
[363713994,1748839842342,-221.43926187,0.0002,2]
[363713995,1748839842354,-671.63229406,0.00020107,2]
[363713996,1748839842364,-430.0,0.00020128,2]
[363713997,1748839842374,-1200.0,0.00020129,2]
[363713998,1748839842384,-184.31,0.00020167,2]
[363713999,1748839842394,-430.0,0.00020167,2]
[363714000,1748839842404,-889.95,0.00020167,2]
[363714001,1748839842414,-430.0,0.00020167,2]
[363714002,1748839842423,-437.08,0.00020167,2]
[363714003,1748839842436,-900.56,0.00020167,2]
[363714004,1748839842446,-1132.34,0.00020167,2]
[363714005,1748839842456,-430.0,0.00020167,2]
[363714006,1748839842467,-430.0,0.00020167,2]
[363714007,1748839842477,-430.0,0.00020167,2]
[363714008,1748839842486,-521.07,0.00020167,2]
[363714009,1748839842496,-430.0,0.00020167,2]
[363714010,1748839842506,-430.0,0.00020167,2]
[363714011,1748839842516,-430.0,0.00020169,2]
[363714012,1748839842528,-430.0,0.00020169,2]
[363714013,1748839842538,-430.0,0.00020169,2]
[363714014,1748839842549,-430.0,0.00020169,2]
[363714015,1748839842558,-430.0,0.00020169,2]
[363714016,1748839842569,-430.0,0.00020169,2]
[363714017,1748839842579,-469.55,0.00020169,2]
[363714018,1748839842588,-496.8,0.00020169,2]
[363714019,1748839842598,-430.0,0.00020169,2]
[363714020,1748839842608,-430.0,0.00020169,2]
[363714021,1748839842618,-430.0,0.00020169,2]
[363714022,1748839842628,-430.0,0.00020169,2]
[363714023,1748839842637,-115.91960437,0.00020169,2]
[363714024,1748839842852,-314.08039563,0.00020169,2]
[363714025,1748839842867,-430.0,0.00020169,2]
[363714026,1748839842879,-430.0,0.00020169,2]
[363714027,1748839842890,-430.0,0.00020169,2]
[363714028,1748839842903,-430.0,0.00020169,2]
[363714029,1748839842918,-430.0,0.00020169,2]
[363714030,1748839842946,-430.0,0.00020169,2]
[363714031,1748839842959,-961.55,0.00020169,2]
[363714032,1748839842975,-430.0,0.0002017,2]
[363714033,1748839842990,-530.18,0.0002017,2]
[363714034,1748839843014,-236.04,0.0002017,2]
[363714035,1748839843030,-430.0,0.0002017,2]
[363714036,1748839843046,-430.0,0.0002017,2]
[363714037,1748839843061,-430.0,0.0002017,2]
[363714038,1748839843075,-430.0,0.0002017,2]
[363714039,1748839843089,-524.77248763,0.0002017,2]
[363714040,1748839843103,-430.0,0.0002017,2]
[363714041,1748839843117,-430.0,0.0002017,2]
[363714042,1748839843129,-430.0,0.0002017,2]
[363714043,1748839843142,-430.0,0.0002017,2]
[363714044,1748839843155,-430.0,0.0002017,2]
[363714045,1748839843168,-459.33422458,0.0002017,2]
[363714046,1748839843180,-434.97841749,0.0002017,2]
[363714047,1748839843193,-430.0,0.0002017,2]
[363714048,1748839843206,-434.70235338,0.0002017,2]
[363714049,1748839843218,-369.53613733,0.00020173,2]
[363714050,1748839843231,-430.0,0.00020173,2]
[363714051,1748839843243,-430.0,0.00020173,2]
[363714052,1748839843255,-160.0,0.00020179,2]
[363714053,1748839843267,-160.0,0.00020179,2]
[363714054,1748839843279,-229.39799938,0.00020179,2]
[363714055,1748839843292,-160.0,0.00020179,2]
[363714056,1748839843304,-212.83419937,0.00020179,2]
[363714057,1748839843317,-12668.79298183,0.00020179,2]
[363714058,1748839843329,-423.56953423,0.00020179,2]
[363714059,1748839843341,-842.5625,0.00020179,2]
[363714060,1748839843356,-160.0,0.0002018,2]
[363714062,1748839843371,-211.886243,0.00020187,2]
[363714063,1748839843384,-671.63229406,0.00020279,3]
[363714064,1748839843398,-338.74875402,0.00020402,2]
[363714065,1748839843412,-430.0,0.00020441,2]
[363714066,1748839843424,-889.95,0.00020441,2]
[363714067,1748839843436,-425.42549935,0.00020441,2]
[363714068,1748839843447,-900.56,0.00020441,2]
[363714069,1748839843457,-1132.34,0.00020441,2]
[363714070,1748839843467,-430.0,0.00020441,2]
[363714071,1748839843477,-430.0,0.00020441,2]
[363714072,1748839843487,-430.0,0.00020441,2]
[363714073,1748839843496,-521.07,0.00020441,2]
[363714074,1748839843506,-430.0,0.00020441,2]
[363714075,1748839843521,-430.0,0.00020441,2]
[363714076,1748839843531,-300.67,0.00020443,2]
[363714077,1748839843541,-430.0,0.00020443,2]
[363714078,1748839843551,-430.0,0.00020443,2]
[363714079,1748839843563,-496.8,0.00020443,2]
[363714080,1748839843574,-430.0,0.00020443,2]
[363714081,1748839843584,-430.0,0.00020443,2]
[363714083,1748839843594,-430.0,0.00020443,2]
[363714085,1748839843604,-430.0,0.00020443,2]
[363714086,1748839843615,-430.0,0.00020443,2]
[363714087,1748839843624,-206.59931809,0.00020443,2]
[363714088,1748839843633,-430.0,0.00020443,2]
[363714090,1748839843643,-458.0,0.00020443,2]
[363714092,1748839843652,-430.0,0.00020443,2]
[363714094,1748839843662,-642.22364275,0.00020443,2]
[363714114,1748839844233,-500.0,0.00019071,2]
[363714115,1748839844243,-205.42628788,0.00019071,2]
[363714116,1748839844253,-500.0,0.00019071,2]
[363714117,1748839844262,-500.0,0.00019071,2]
[363714118,1748839844272,-500.0,0.00019071,2]
[363714119,1748839844281,-500.0,0.00019071,2]
[363714120,1748839844291,-500.0,0.00019071,2]
[363714121,1748839844300,-500.0,0.00019071,2]
[363714122,1748839844309,-500.0,0.00019071,2]
[363714123,1748839844319,-500.0,0.00019071,2]
[363714124,1748839844328,-500.0,0.00019071,2]
[363714125,1748839844338,-500.0,0.00019071,2]
[363714126,1748839844348,-500.0,0.00019071,2]
[363714127,1748839844361,-500.0,0.00019071,2]
[363714128,1748839844372,-500.0,0.00019071,2]
[363714129,1748839844383,-500.0,0.00019071,2]
[363714130,1748839844393,-266.0717707,0.00019071,2]
[363714131,1748839844403,-500.0,0.00019071,2]
[363714132,1748839844413,-500.0,0.00019071,2]
[363714133,1748839844423,-500.0,0.00019071,2]
[363714134,1748839844434,-500.0,0.00019071,2]
[363714135,1748839844444,-500.0,0.00019071,2]
[363714136,1748839844453,-500.0,0.00019071,2]
[363714137,1748839844463,-430.0,0.00019071,2]
[363714138,1748839844472,-453.07215491,0.00019072,2]
[363714139,1748839844483,-319.32635725,0.00020443,2]
[363714140,1748839844493,-430.0,0.00020444,2]
[363714141,1748839844503,-430.0,0.00020444,2]
[363714142,1748839844512,-430.0,0.00020444,2]
[363714143,1748839844523,-430.0,0.00020444,2]
[363714144,1748839844533,-430.0,0.00020444,2]
[363714145,1748839844544,-436.82093904,0.00020444,2]
[363714146,1748839844554,-671.63229406,0.00020452,3]
[363714147,1748839844564,-1404.51117675,0.00020482,2]
[363714148,1748839844575,-151.0,0.000205,4]
[363714149,1748839844584,-742.33,0.00020547,2]
[363714150,1748839844594,-39345.73,0.000206,2]
[363714151,1748839844604,-671.63229406,0.00020624,3]
[363714152,1748839844614,-430.0,0.00020715,2]
[363714153,1748839844624,-889.95,0.00020715,2]
[363714154,1748839844634,-900.56,0.00020715,2]
[363714155,1748839844645,-1132.34,0.00020715,2]
[363714156,1748839844655,-430.0,0.00020715,2]
[363714157,1748839844664,-430.0,0.00020715,2]
[363714158,1748839844674,-521.07,0.00020715,2]
[363714159,1748839844685,-430.0,0.00020715,2]
[363714160,1748839844695,-496.8,0.00020717,2]
[363714161,1748839844705,-430.0,0.00020717,2]
[363714162,1748839844716,-430.0,0.00020717,2]
[363714163,1748839844726,-430.0,0.00020717,2]
[363714164,1748839844736,-430.0,0.00020717,2]
[363714165,1748839844746,-961.55,0.00020717,2]
[363714166,1748839844756,-269.6,0.00020718,2]
[363714167,1748839844767,-1659.4,0.00020771,2]
[363714168,1748839844777,-671.63229406,0.00020797,4]
[363714169,1748839844788,-151.0,0.000208,4]
[363714170,1748839844801,-671.63229406,0.00020969,4]
[363714171,1748839844811,-430.0,0.00020989,2]
[363714172,1748839844820,-889.95,0.00020989,2]
[363714173,1748839844830,-900.56,0.00020989,2]
[363714174,1748839844840,-1132.34,0.00020989,2]
[363714175,1748839844852,-430.0,0.00020989,2]
[363714176,1748839844863,-430.0,0.00020989,2]
[363714177,1748839844872,-521.07,0.00020989,2]
[363714178,1748839844882,-430.0,0.00020989,2]
[363714179,1748839844892,-496.8,0.00020991,2]
[363714180,1748839844901,-577.6,0.00020991,2]
[363714181,1748839844910,-430.0,0.00020991,2]
[363714182,1748839844920,-430.0,0.00020991,2]
[363714183,1748839844929,-430.0,0.00020991,2]
[363714184,1748839844938,-961.55,0.00020991,2]
[363714185,1748839844948,-742.33,0.00021095,3]
[363714186,1748839844958,-364.4406513,0.00021096,2]
[363714187,1748839844968,-151.0,0.000211,3]
[363714188,1748839844978,-671.63229406,0.00021141,4]
[363714189,1748839844989,-1200.0,0.00021225,2]
[363714190,1748839844999,-308.5920414,0.00021233,2]
[363714191,1748839845020,-1404.51117675,0.00021235,2]
[363714192,1748839845031,-430.0,0.00021263,2]
[363714193,1748839845042,-889.95,0.00021263,2]
[363714194,1748839845053,-900.56,0.00021263,2]
[363714195,1748839845066,-1132.34,0.00021263,2]
[363714196,1748839845076,-406.55,0.00021263,2]
[363714197,1748839845087,-430.0,0.00021263,2]
[363714198,1748839845097,-521.07,0.00021263,2]
[363714199,1748839845109,-430.0,0.00021263,2]
[363714200,1748839845120,-496.8,0.00021265,2]
[363714201,1748839845132,-430.0,0.00021265,2]
[363714202,1748839845143,-430.0,0.00021265,2]
[363714203,1748839845155,-961.55,0.00021265,2]
[363714204,1748839845166,-671.63229406,0.00021314,5]
[363714205,1748839845178,-207.4,0.00021389,2]
[363714206,1748839845189,-273.13548576,0.00021389,2]
[363714207,1748839845199,-500.0,0.00021389,2]
[363714208,1748839845211,-500.0,0.00021389,2]
[363714209,1748839845222,-500.0,0.00021389,2]
[363714210,1748839845233,-500.0,0.00021389,2]
[363714211,1748839845244,-500.0,0.00021389,2]
[363714212,1748839845254,-500.0,0.00021389,2]
[363714213,1748839845264,-500.0,0.00021389,2]
[363714214,1748839845273,-500.0,0.00021389,2]
[363714215,1748839845284,-500.0,0.00021389,2]
[363714216,1748839845296,-500.0,0.00021389,2]
[363714217,1748839845307,-500.0,0.00021389,2]
[363714218,1748839845319,-500.0,0.00021389,2]
[363714219,1748839845329,-500.0,0.00021389,2]
[363714220,1748839845339,-500.0,0.00021389,2]
[363714221,1748839845349,-500.0,0.00021389,2]
[363714222,1748839845362,-500.0,0.00021389,2]
[363714223,1748839845372,-500.0,0.00021389,2]
[363714224,1748839845383,-500.0,0.00021389,2]
[363714225,1748839845392,-5000.0,0.00021389,2]
[363714226,1748839845402,-500.0,0.00021389,2]
[363714227,1748839845412,-500.0,0.00021389,2]
[363714228,1748839845423,-500.0,0.00021389,2]
[363714229,1748839845434,-500.0,0.00021389,2]
[363714230,1748839845445,-500.0,0.00021389,2]
[363714231,1748839845455,-500.0,0.00021389,2]
[363714232,1748839845465,-500.0,0.00021389,2]
[363714233,1748839845475,-500.0,0.00021389,2]
[363714234,1748839845485,-500.0,0.00021389,2]
[363714235,1748839845496,-500.0,0.00021389,2]
[363714236,1748839845506,-500.0,0.00021389,2]
[363714237,1748839845516,-500.0,0.00021389,2]
[363714238,1748839845527,-151.0,0.000214,4]
[363714239,1748839845538,-671.63229406,0.00021486,5]
[363714240,1748839845549,-500.0,0.000215,2]
[363714241,1748839845559,-393.73142851,0.000215,2]
[363714242,1748839845569,-500.0,0.000215,2]
[363714243,1748839845580,-500.0,0.000215,2]
[363714244,1748839845592,-500.0,0.000215,2]
[363714245,1748839845602,-502.69614714,0.000215,2]
[363714246,1748839845612,-560.98614887,0.00021537,2]
[363714247,1748839845622,-889.95,0.00021537,2]
[363714248,1748839845635,-900.56,0.00021537,2]
[363714249,1748839845646,-1132.34,0.00021537,2]
[363714250,1748839845656,-430.0,0.00021537,2]
[363714251,1748839845666,-521.07,0.00021537,2]
[363714252,1748839845677,-496.8,0.00021539,2]
[363714253,1748839845689,-430.0,0.00021539,2]
[363714254,1748839845699,-430.0,0.00021539,2]
[363714255,1748839845711,-961.55,0.00021539,2]
[363714256,1748839845724,-2163.590311,0.00021559,3]
[363714257,1748839845733,-587.0,0.00021566,2]
[363714258,1748839845743,-2074.25,0.00021636,2]
[363714259,1748839845753,-742.33,0.00021643,4]
[363714260,1748839845765,-601.0065414,0.00021643,2]
[363714261,1748839845774,-158.5152029,0.00021644,2]
[363714262,1748839845784,-176.5287595,0.00021644,2]
[363714263,1748839845795,-953.5256016,0.00021644,2]
[363714264,1748839845806,-671.63229406,0.00021659,5]
[363714265,1748839845815,-151.0,0.000217,4]
[363714266,1748839845826,-39345.73,0.000217,2]
[363714267,1748839845836,-151.0,0.000217,4]
[363714268,1748839845846,-173945.20350335,0.0002178,2]
[363714269,1748839845856,-889.95,0.00021811,2]
[363714270,1748839845866,-900.56,0.00021811,2]
[363714271,1748839845876,-1132.34,0.00021811,2]
[363714272,1748839845885,-430.0,0.00021811,2]
[363714273,1748839845896,-521.07,0.00021811,2]
[363714274,1748839845907,-496.8,0.00021813,2]
[363714275,1748839845916,-430.0,0.00021813,2]
[363714276,1748839845926,-430.0,0.00021813,2]
[363714277,1748839845936,-961.55,0.00021813,2]
[363714278,1748839845946,-671.63229406,0.00021831,6]
[363714279,1748839845956,-5000.0,0.00021874,2]
[363714280,1748839845966,-5000.0,0.00021896,2]
[363714281,1748839845976,-12500.0,0.00021909,2]
[363714282,1748839845986,-203.57415183,0.00021917,2]
[363714283,1748839845996,-500.0,0.00021917,2]
[363714284,1748839846005,-500.0,0.00021917,2]
[363714285,1748839846016,-500.0,0.00021917,2]
[363714286,1748839846026,-500.0,0.00021917,2]
[363714287,1748839846036,-500.0,0.00021917,2]
[363714288,1748839846046,-500.0,0.00021917,2]
[363714289,1748839846056,-500.0,0.00021917,2]
[363714290,1748839846066,-500.0,0.00021917,2]
[363714291,1748839846077,-363.35405344,0.00021917,2]
[363714292,1748839846089,-538.96,0.00021917,2]
[363714293,1748839846099,-538.96,0.00021917,2]
[363714294,1748839846109,-538.96,0.00021917,2]
[363714295,1748839846119,-538.96,0.00021917,2]
[363714296,1748839846130,-538.96,0.00021917,2]
[363714297,1748839846141,-538.96,0.00021917,2]
[363714298,1748839846151,-538.96,0.00021917,2]
[363714299,1748839846161,-538.96,0.00021917,2]
[363714300,1748839846172,-538.96,0.00021917,2]
[363714301,1748839846185,-538.96,0.00021917,2]
[363714302,1748839846195,-538.96,0.00021917,2]
[363714303,1748839846206,-500.0,0.00021917,2]
[363714304,1748839846215,-500.0,0.00021917,2]
[363714305,1748839846225,-500.0,0.00021917,2]
[363714306,1748839846234,-500.0,0.00021917,2]
[363714307,1748839846244,-500.0,0.00021917,2]
[363714308,1748839846254,-500.0,0.00021917,2]
[363714309,1748839846264,-500.0,0.00021917,2]
[363714310,1748839846273,-327.55331113,0.00021917,2]
[363714311,1748839846283,-500.0,0.00021917,2]
[363714312,1748839846293,-323.0767398,0.00021918,7]
[363714313,1748839846303,-150.0,0.00021918,2]
[363714314,1748839846313,-12500.0,0.00021918,2]
[363714315,1748839846323,-12500.0,0.00021918,2]
[363714316,1748839846333,-635.05710346,0.00021918,2]
[363714317,1748839846344,-5000.0,0.00021937,2]
[363714318,1748839846359,-500.0,0.00021973,2]
[363714319,1748839846368,-471.23588442,0.00021973,2]
[363714320,1748839846379,-500.0,0.00021973,2]
[363714321,1748839846389,-501.29610451,0.00021973,2]
[363714322,1748839846398,-500.0,0.00021973,2]
[363714323,1748839846408,-500.0,0.00021973,2]
[363714324,1748839846417,-501.78071946,0.00021973,2]
[363714325,1748839846427,-500.0,0.00021973,2]
[363714326,1748839846439,-271.76850087,0.00021973,2]
[363714327,1748839846449,-500.0,0.00021973,2]
[363714328,1748839846459,-503.02987642,0.00021973,2]
[363714329,1748839846469,-500.0,0.00021973,2]
[363714330,1748839846478,-500.0,0.00021973,2]
[363714331,1748839846488,-502.47866998,0.00021973,2]
[363714332,1748839846498,-500.0,0.00021973,2]
[363714333,1748839846507,-501.46558268,0.00021973,2]
[363714334,1748839846518,-600.0,0.00021973,2]
[363714335,1748839846528,-500.0,0.00021973,2]
[363714336,1748839846538,-500.0,0.00021973,2]
[363714337,1748839846547,-500.0,0.00021973,2]
[363714338,1748839846557,-3000.0,0.00021986,2]
[363714339,1748839846569,-1404.51117675,0.00021987,2]
[363714340,1748839846579,-3000.0,0.0002199,2]
[363714341,1748839846589,-5000.0,0.00021994,2]
[363714342,1748839846599,-7000.0,0.00021996,2]
[363714343,1748839846609,-1025463.15908169,0.00021999,2]
[363714346,1748839846691,-103540.00000003,0.00021999,2]
[363714357,1748839846938,-2495.56342047,0.00021999,2]
[363714360,1748840302729,210.059895,0.00013699,2]
[363714362,1748840318191,9000.0,0.0001552,2]
[363714363,1748840468936,-4977.0,0.00017231,2]
[363714365,1748840604590,-4973.0,0.00017059,2]
[363714366,1748840804731,-4995.0,0.00017231,2]
[363714367,1748840937987,-430.0,0.00017,2]
[363714376,1748841032055,-5000.0,0.0001683,2]
[363714377,1748841032066,-2.0,0.00017,2]
[363714378,1748841032075,-154.57311175,0.00017405,2]
[363714379,1748841032085,-0.61916758,0.000182,2]
[363714433,1748841037809,-292.20881471,0.000182,2]
[363714435,1748841037819,-346.915642,0.00018314,2]
[363714437,1748841037829,-199.80257925,0.00018499,2]
[363714438,1748841037838,-1296.11677364,0.000189,2]
[363714439,1748841037848,-300.0,0.0001907,2]
[363714440,1748841037858,-300.0,0.0001907,2]
[363714441,1748841037868,-430.0,0.00019071,2]
[363714442,1748841037878,-430.0,0.00019071,2]
[363714443,1748841037887,-430.0,0.00019071,2]
[363714444,1748841037897,-430.0,0.00019071,2]
[363714445,1748841037907,-430.0,0.00019071,2]
[363714446,1748841037916,-430.0,0.00019071,2]
[363714447,1748841037926,-74.49169705,0.00019071,2]